[Event "Titled Tuesday Blitz June 07 Late 2022"]
[White "Rasulov, Vugar"]
[Black "Nakamura, Hikaru"]
[WhiteFideId "13402390"]
[BlackFideId "2016192"]
[WhiteElo "2560"]
[BlackElo "2850"]
[Result "0-1"]
[Round "03"]
[TimeControl "180+1"]
[Date "2022.06.07"]
[WhiteClock "0:00:07"]
[BlackClock "0:00:11"]

1. d4 {[%clk 0:03:00]}  Nf6 {[%clk 0:03:00]} 2. c4 {[%clk 0:03:00]}  e6 {[%clk 0:03:00]} 3. Nf3 {[%clk 0:03:00]}  b6 {[%clk 0:03:00]} 4. g3 {[%clk 0:02:59]}  Bb7 {[%clk 0:03:00]} 5. Bg2 {[%clk 0:03:00]}  Bb4+ {[%clk 0:03:01]} 6. Bd2 {[%clk 0:02:59]}  Be7 {[%clk 0:03:02]} 7. O-O {[%clk 0:02:59]}  O-O {[%clk 0:03:02]} 8. Nc3 {[%clk 0:02:58]}  d5 {[%clk 0:03:03]} 9. Ne5 {[%clk 0:02:55]}  Nbd7 {[%clk 0:03:03]} 10. Qa4 {[%clk 0:02:52]}  Nxe5 {[%clk 0:02:31]} 11. dxe5 {[%clk 0:02:53]}  Ne8 {[%clk 0:02:32]} 12. Rad1 {[%clk 0:02:45]}  c6 {[%clk 0:02:29]} 13. cxd5 {[%clk 0:02:44]}  cxd5 {[%clk 0:02:27]} 14. e4 {[%clk 0:02:29]}  d4 {[%clk 0:02:06]} 15. Be3 {[%clk 0:02:20]}  dxe3 {[%clk 0:02:06]} 16. Rxd8 {[%clk 0:02:19]}  exf2+ {[%clk 0:02:07]} 17. Rxf2 {[%clk 0:02:13]}  Bxd8 {[%clk 0:02:07]} 18. Rd2 {[%clk 0:02:09]}  a6 {[%clk 0:01:58]} 19. Nd5 {[%clk 0:01:57]}  b5 {[%clk 0:01:54]} 20. Qd4 {[%clk 0:01:54]}  exd5 {[%clk 0:01:54]} 21. exd5 {[%clk 0:01:55]}  Nc7 {[%clk 0:01:52]} 22. Rc2 {[%clk 0:01:42]}  Rb8 {[%clk 0:01:43]} 23. Kf1 {[%clk 0:01:38]}  Na8 {[%clk 0:01:33]} 24. d6 {[%clk 0:01:29]}  Bxg2+ {[%clk 0:01:32]} 25. Kxg2 {[%clk 0:01:30]}  Nb6 {[%clk 0:01:32]} 26. Rc6 {[%clk 0:01:29]}  Re8 {[%clk 0:01:21]} 27. b3 {[%clk 0:01:28]}  Nd7 {[%clk 0:01:20]} 28. Qa7 {[%clk 0:01:24]}  Nxe5 {[%clk 0:01:17]} 29. Qxb8 {[%clk 0:01:19]}  Nxc6 {[%clk 0:01:17]} 30. Qc8 {[%clk 0:01:20]}  Nd4 {[%clk 0:01:11]} 31. d7 {[%clk 0:01:19]}  Rf8 {[%clk 0:01:11]} 32. Qxa6 {[%clk 0:01:18]}  h5 {[%clk 0:01:09]} 33. a4 {[%clk 0:01:16]}  bxa4 {[%clk 0:01:06]} 34. bxa4 {[%clk 0:01:17]}  Nb3 {[%clk 0:01:06]} 35. Qb5 {[%clk 0:01:14]}  Na5 {[%clk 0:01:06]} 36. Qxh5 {[%clk 0:01:15]}  g6 {[%clk 0:01:05]} 37. Qd5 {[%clk 0:01:15]}  Kg7 {[%clk 0:01:05]} 38. h4 {[%clk 0:01:15]}  Rh8 {[%clk 0:01:06]} 39. Qd4+ {[%clk 0:01:08]}  Bf6 {[%clk 0:01:05]} 40. Qc5 {[%clk 0:01:08]}  Rh5 {[%clk 0:00:57]} 41. Qd6 {[%clk 0:01:05]}  Rh8 {[%clk 0:00:40]} 42. Qd5 {[%clk 0:01:01]}  Bd8 {[%clk 0:00:38]} 43. Kf3 {[%clk 0:00:59]}  Rh5 {[%clk 0:00:38]} 44. Qd4+ {[%clk 0:01:00]}  Kg8 {[%clk 0:00:34]} 45. Kg4 {[%clk 0:00:58]}  Nc6 {[%clk 0:00:33]} 46. Qd6 {[%clk 0:00:49]}  Ne5+ {[%clk 0:00:23]} 47. Kh3 {[%clk 0:00:50]}  Kg7 {[%clk 0:00:21]} 48. Qb8 {[%clk 0:00:38]}  Nc6 {[%clk 0:00:20]} 49. Qb2+ {[%clk 0:00:28]}  Kf8 {[%clk 0:00:21]} 50. Qc3 {[%clk 0:00:26]}  Na5 {[%clk 0:00:19]} 51. Qb4+ {[%clk 0:00:25]}  Kg7 {[%clk 0:00:18]} 52. Qb8 {[%clk 0:00:25]}  Rh8 {[%clk 0:00:18]} 53. Qe5+ {[%clk 0:00:25]}  Kh7 {[%clk 0:00:17]} 54. Kg4 {[%clk 0:00:24]}  Rg8 {[%clk 0:00:17]} 55. Kf3 {[%clk 0:00:22]}  Rf8 {[%clk 0:00:16]} 56. h5 {[%clk 0:00:23]}  gxh5 {[%clk 0:00:16]} 57. Qxh5+ {[%clk 0:00:23]}  Kg7 {[%clk 0:00:17]} 58. Qe5+ {[%clk 0:00:24]}  Kg6 {[%clk 0:00:18]} 59. g4 {[%clk 0:00:24]}  Kh7 {[%clk 0:00:17]} 60. Kg3 {[%clk 0:00:22]}  Kg6 {[%clk 0:00:16]} 61. Kf4 {[%clk 0:00:21]}  Kh7 {[%clk 0:00:17]} 62. Kf5 {[%clk 0:00:21]}  Kg8 {[%clk 0:00:17]} 63. Qd5 {[%clk 0:00:18]}  Kg7 {[%clk 0:00:17]} 64. g5 {[%clk 0:00:18]}  Kh7 {[%clk 0:00:17]} 65. Qh1+ {[%clk 0:00:17]}  Kg7 {[%clk 0:00:17]} 66. Qh6+ {[%clk 0:00:18]}  Kg8 {[%clk 0:00:18]} 67. Qd6 {[%clk 0:00:16]}  Nc4 {[%clk 0:00:17]} 68. Qd4 {[%clk 0:00:15]}  Na5 {[%clk 0:00:17]} 69. g6 {[%clk 0:00:15]}  Nc6 {[%clk 0:00:15]} 70. Qc5 {[%clk 0:00:07]}  Ne7+ {[%clk 0:00:15]} 71. Ke4 {[%clk 0:00:08]}  f5+ {[%clk 0:00:14]} 72. Kd3 {[%clk 0:00:08]}  Nxg6 {[%clk 0:00:15]} 73. a5 {[%clk 0:00:08]}  Rf7 {[%clk 0:00:10]} 74. Qc4 {[%clk 0:00:06]}  Ne5+ {[%clk 0:00:11]} 75. Kd4 {[%clk 0:00:06]}  Nxc4 {[%clk 0:00:12]} 76. Kxc4 {[%clk 0:00:07]}  Bxa5 {[%clk 0:00:11]} 0-1


[Site "https://www.chess.com"]

[Event "Titled Tuesday Blitz June 07 Late 2022"]
[White "Rychagov, Andrey"]
[Black "Paravyan, David"]
[WhiteFideId "4119932"]
[BlackFideId "4194985"]
[WhiteElo "2460"]
[BlackElo "2569"]
[Result "0-1"]
[Round "03"]
[TimeControl "180+1"]
[Date "2022.06.07"]
[WhiteClock "0:00:01"]
[BlackClock "0:00:10"]

1. d4 {[%clk 0:03:00]}  Nf6 {[%clk 0:02:59]} 2. c4 {[%clk 0:03:01]}  g6 {[%clk 0:02:59]} 3. Nc3 {[%clk 0:02:58]}  d5 {[%clk 0:03:00]} 4. cxd5 {[%clk 0:02:55]}  Nxd5 {[%clk 0:03:00]} 5. Bd2 {[%clk 0:02:55]}  Bg7 {[%clk 0:02:56]} 6. e4 {[%clk 0:02:55]}  Nxc3 {[%clk 0:02:56]} 7. Bxc3 {[%clk 0:02:56]}  Nc6 {[%clk 0:02:57]} 8. Bb5 {[%clk 0:02:45]}  O-O {[%clk 0:02:53]} 9. Ne2 {[%clk 0:02:44]}  Qd6 {[%clk 0:02:52]} 10. O-O {[%clk 0:02:35]}  Rd8 {[%clk 0:02:46]} 11. Bxc6 {[%clk 0:02:28]}  bxc6 {[%clk 0:02:40]} 12. Qa4 {[%clk 0:02:23]}  a5 {[%clk 0:02:36]} 13. Rfd1 {[%clk 0:02:15]}  Ba6 {[%clk 0:02:35]} 14. Ng3 {[%clk 0:02:12]}  h5 {[%clk 0:02:20]} 15. e5 {[%clk 0:01:32]}  Qd5 {[%clk 0:02:18]} 16. Qxa5 {[%clk 0:01:28]}  Qxa5 {[%clk 0:02:14]} 17. Bxa5 {[%clk 0:01:28]}  h4 {[%clk 0:02:14]} 18. Ne4 {[%clk 0:01:26]}  Be2 {[%clk 0:02:08]} 19. Rd2 {[%clk 0:00:50]}  Rxa5 {[%clk 0:02:06]} 20. Rxe2 {[%clk 0:00:50]}  Rxd4 {[%clk 0:02:06]} 21. f4 {[%clk 0:00:44]}  g5 {[%clk 0:01:57]} 22. Nxg5 {[%clk 0:00:40]}  Rxf4 {[%clk 0:01:56]} 23. Nf3 {[%clk 0:00:32]}  h3 {[%clk 0:01:55]} 24. a3 {[%clk 0:00:30]}  f6 {[%clk 0:01:43]} 25. e6 {[%clk 0:00:27]}  f5 {[%clk 0:01:37]} 26. Rc1 {[%clk 0:00:28]}  c5 {[%clk 0:01:35]} 27. Rd1 {[%clk 0:00:27]}  Bf6 {[%clk 0:01:34]} 28. Rd5 {[%clk 0:00:26]}  Re4 {[%clk 0:01:24]} 29. Rxe4 {[%clk 0:00:15]}  fxe4 {[%clk 0:01:25]} 30. Ng5 {[%clk 0:00:15]}  Ra4 {[%clk 0:00:56]} 31. Nxh3 {[%clk 0:00:10]}  Bxb2 {[%clk 0:00:56]} 32. Kf1 {[%clk 0:00:08]}  Bd4 {[%clk 0:00:45]} 33. Rd7 {[%clk 0:00:08]}  Kg7 {[%clk 0:00:38]} 34. Rxe7+ {[%clk 0:00:07]}  Kf6 {[%clk 0:00:39]} 35. Re8 {[%clk 0:00:07]}  Rxa3 {[%clk 0:00:17]} 36. Nf4 {[%clk 0:00:07]}  c6 {[%clk 0:00:18]} 37. Nh5+ {[%clk 0:00:06]}  Ke5 {[%clk 0:00:17]} 38. e7 {[%clk 0:00:06]}  Ra1+ {[%clk 0:00:17]} 39. Ke2 {[%clk 0:00:06]}  Ra2+ {[%clk 0:00:17]} 40. Kd1 {[%clk 0:00:05]}  Kd6 {[%clk 0:00:15]} 41. Ng3 {[%clk 0:00:05]}  Kd7 {[%clk 0:00:14]} 42. Rg8 {[%clk 0:00:04]}  Kxe7 {[%clk 0:00:13]} 43. Nxe4 {[%clk 0:00:05]}  Ke6 {[%clk 0:00:12]} 44. Rg6+ {[%clk 0:00:04]}  Kf5 {[%clk 0:00:10]} 45. Rxc6 {[%clk 0:00:01]}  Kxe4 {[%clk 0:00:10]} 0-1


[Site "https://www.chess.com"]

[Event "Titled Tuesday Blitz June 07 Late 2022"]
[White "Shimanov, Aleksandr"]
[Black "Van Dael, Siem"]
[WhiteFideId "4198603"]
[BlackFideId "1049771"]
[WhiteElo "2605"]
[BlackElo "2113"]
[Result "1-0"]
[Round "03"]
[TimeControl "180+1"]
[Date "2022.06.07"]
[WhiteClock "0:02:10"]
[BlackClock "0:01:42"]

1. e4 {[%clk 0:03:00]}  e5 {[%clk 0:02:58]} 2. Nf3 {[%clk 0:03:00]}  Nf6 {[%clk 0:02:59]} 3. Nc3 {[%clk 0:03:00]}  Nc6 {[%clk 0:02:58]} 4. h3 {[%clk 0:03:00]}  d5 {[%clk 0:02:57]} 5. exd5 {[%clk 0:03:00]}  Nxd5 {[%clk 0:02:58]} 6. Bb5 {[%clk 0:03:00]}  Nxc3 {[%clk 0:02:58]} 7. bxc3 {[%clk 0:03:01]}  Bd6 {[%clk 0:02:59]} 8. O-O {[%clk 0:03:01]}  O-O {[%clk 0:02:59]} 9. Re1 {[%clk 0:03:01]}  Qf6 {[%clk 0:02:50]} 10. d4 {[%clk 0:03:00]}  exd4 {[%clk 0:02:50]} 11. cxd4 {[%clk 0:03:00]}  h6 {[%clk 0:02:50]} 12. Bb2 {[%clk 0:02:52]}  Qg6 {[%clk 0:02:45]} 13. Bd3 {[%clk 0:02:49]}  Qh5 {[%clk 0:02:39]} 14. c4 {[%clk 0:02:46]}  Bf5 {[%clk 0:02:21]} 15. d5 {[%clk 0:02:34]}  Nb4 {[%clk 0:02:10]} 16. Bxf5 {[%clk 0:02:22]}  Qxf5 {[%clk 0:02:11]} 17. Nd4 {[%clk 0:02:18]}  Qd3 {[%clk 0:02:11]} 18. Qg4 {[%clk 0:02:14]}  f5 {[%clk 0:01:42]} 19. Nxf5 {[%clk 0:02:10]} 1-0


[Site "https://www.chess.com"]

[Event "Titled Tuesday Blitz June 07 Late 2022"]
[White "Sjugirov, Sanan"]
[Black "Rosen, Eric"]
[WhiteFideId "4189302"]
[BlackFideId "2032562"]
[WhiteElo "2602"]
[BlackElo "2362"]
[Result "1-0"]
[Round "03"]
[TimeControl "180+1"]
[Date "2022.06.07"]
[WhiteClock "0:00:09"]
[BlackClock "0:00:02"]

1. Nf3 {[%clk 0:03:00]}  Nf6 {[%clk 0:02:56]} 2. g3 {[%clk 0:03:01]}  b5 {[%clk 0:02:55]} 3. Bg2 {[%clk 0:03:00]}  Bb7 {[%clk 0:02:55]} 4. O-O {[%clk 0:03:00]}  e6 {[%clk 0:02:56]} 5. d3 {[%clk 0:03:00]}  c5 {[%clk 0:02:55]} 6. e4 {[%clk 0:02:49]}  d6 {[%clk 0:02:53]} 7. Ng5 {[%clk 0:02:37]}  h6 {[%clk 0:02:42]} 8. Nh3 {[%clk 0:02:37]}  Nc6 {[%clk 0:02:41]} 9. f4 {[%clk 0:02:36]}  Be7 {[%clk 0:02:42]} 10. Nf2 {[%clk 0:02:31]}  a5 {[%clk 0:02:37]} 11. Be3 {[%clk 0:02:23]}  Qc7 {[%clk 0:02:32]} 12. Nc3 {[%clk 0:02:18]}  b4 {[%clk 0:02:11]} 13. Nb5 {[%clk 0:02:17]}  Qb6 {[%clk 0:02:11]} 14. a4 {[%clk 0:02:17]}  bxa3 {[%clk 0:02:00]} 15. Nxa3 {[%clk 0:02:16]}  Ba6 {[%clk 0:01:52]} 16. b3 {[%clk 0:02:12]}  O-O {[%clk 0:01:44]} 17. g4 {[%clk 0:02:00]}  Nd4 {[%clk 0:01:40]} 18. h4 {[%clk 0:01:57]}  Nd7 {[%clk 0:01:19]} 19. g5 {[%clk 0:01:56]}  Rfe8 {[%clk 0:01:04]} 20. Nc4 {[%clk 0:01:36]}  Bxc4 {[%clk 0:01:04]} 21. dxc4 {[%clk 0:01:35]}  a4 {[%clk 0:00:44]} 22. bxa4 {[%clk 0:01:34]}  Qb2 {[%clk 0:00:44]} 23. Bxd4 {[%clk 0:00:43]}  cxd4 {[%clk 0:00:44]} 24. Nd3 {[%clk 0:00:31]}  Qc3 {[%clk 0:00:42]} 25. gxh6 {[%clk 0:00:27]}  gxh6 {[%clk 0:00:38]} 26. f5 {[%clk 0:00:21]}  Bxh4 {[%clk 0:00:32]} 27. fxe6 {[%clk 0:00:20]}  Rxe6 {[%clk 0:00:26]} 28. Qh5 {[%clk 0:00:12]}  Bf6 {[%clk 0:00:18]} 29. Bh3 {[%clk 0:00:08]}  Rae8 {[%clk 0:00:04]} 30. Bxe6 {[%clk 0:00:07]}  Rxe6 {[%clk 0:00:05]} 31. Rac1 {[%clk 0:00:05]}  Ne5 {[%clk 0:00:05]} 32. Qh3 {[%clk 0:00:02]}  Bg7 {[%clk 0:00:05]} 33. Kh1 {[%clk 0:00:01]}  Rg6 {[%clk 0:00:04]} 34. Rg1 {[%clk 0:00:02]}  h5 {[%clk 0:00:04]} 35. Rxg6 {[%clk 0:00:02]}  Nxg6 {[%clk 0:00:05]} 36. Rf1 {[%clk 0:00:02]}  Ne5 {[%clk 0:00:04]} 37. Qc8+ {[%clk 0:00:01]}  Kh7 {[%clk 0:00:05]} 38. Qf5+ {[%clk 0:00:02]}  Kg8 {[%clk 0:00:05]} 39. Nxe5 {[%clk 0:00:03]}  dxe5 {[%clk 0:00:04]} 40. Qxf7+ {[%clk 0:00:03]}  Kh7 {[%clk 0:00:04]} 41. Qxh5+ {[%clk 0:00:04]}  Kg8 {[%clk 0:00:05]} 42. Qf7+ {[%clk 0:00:04]}  Kh7 {[%clk 0:00:05]} 43. Qf5+ {[%clk 0:00:04]}  Kg8 {[%clk 0:00:05]} 44. Qf7+ {[%clk 0:00:04]}  Kh7 {[%clk 0:00:05]} 45. Qf3 {[%clk 0:00:04]}  Qxc4 {[%clk 0:00:04]} 46. Qh3+ {[%clk 0:00:04]}  Kg8 {[%clk 0:00:04]} 47. Qb3 {[%clk 0:00:04]}  Qxb3 {[%clk 0:00:02]} 48. cxb3 {[%clk 0:00:05]}  Bf8 {[%clk 0:00:02]} 49. Kg2 {[%clk 0:00:05]}  Bb4 {[%clk 0:00:02]} 50. Kf3 {[%clk 0:00:05]}  Kf7 {[%clk 0:00:03]} 51. Ke2+ {[%clk 0:00:06]}  Ke6 {[%clk 0:00:03]} 52. Kd3 {[%clk 0:00:06]}  Kd6 {[%clk 0:00:03]} 53. Rh1 {[%clk 0:00:07]}  Kc5 {[%clk 0:00:03]} 54. Rh5 {[%clk 0:00:07]}  Bc3 {[%clk 0:00:03]} 55. Rxe5+ {[%clk 0:00:07]}  Kb4 {[%clk 0:00:04]} 56. Rb5+ {[%clk 0:00:07]}  Ka3 {[%clk 0:00:03]} 57. e5 {[%clk 0:00:08]}  Bb2 {[%clk 0:00:03]} 58. e6 {[%clk 0:00:08]}  Bc3 {[%clk 0:00:03]} 59. e7 {[%clk 0:00:09]}  Bb2 {[%clk 0:00:03]} 60. e8=Q {[%clk 0:00:09]}  Ka2 {[%clk 0:00:04]} 61. Qe2 {[%clk 0:00:08]}  Ka1 {[%clk 0:00:02]} 62. Qxb2+ {[%clk 0:00:08]}  Kxb2 {[%clk 0:00:02]} 63. Kxd4 {[%clk 0:00:09]}  Ka3 {[%clk 0:00:02]} 64. a5 {[%clk 0:00:09]} 1-0


[Site "https://www.chess.com"]

[Event "Titled Tuesday Blitz June 07 Late 2022"]
[White "Tahbaz, Arash"]
[Black "Alexiadis, Hristos"]
[WhiteFideId "12528846"]
[BlackFideId "4249623"]
[WhiteElo "2389"]
[BlackElo "2416"]
[Result "1/2-1/2"]
[Round "03"]
[TimeControl "180+1"]
[Date "2022.06.07"]
[WhiteClock "0:00:13"]
[BlackClock "0:00:14"]

1. Nf3 {[%clk 0:03:00]}  Nf6 {[%clk 0:02:59]} 2. g3 {[%clk 0:03:01]}  d5 {[%clk 0:03:00]} 3. Bg2 {[%clk 0:03:02]}  c6 {[%clk 0:03:00]} 4. O-O {[%clk 0:03:03]}  Bg4 {[%clk 0:03:01]} 5. d3 {[%clk 0:03:02]}  Nbd7 {[%clk 0:03:01]} 6. Nbd2 {[%clk 0:02:56]}  e5 {[%clk 0:03:02]} 7. e4 {[%clk 0:02:55]}  dxe4 {[%clk 0:03:03]} 8. dxe4 {[%clk 0:02:55]}  Be7 {[%clk 0:03:03]} 9. h3 {[%clk 0:02:52]}  Bh5 {[%clk 0:03:03]} 10. Qe1 {[%clk 0:02:51]}  O-O {[%clk 0:03:03]} 11. b3 {[%clk 0:02:50]}  Re8 {[%clk 0:03:03]} 12. Bb2 {[%clk 0:02:50]}  Qc7 {[%clk 0:03:03]} 13. Nc4 {[%clk 0:02:47]}  Bf8 {[%clk 0:03:02]} 14. Nh4 {[%clk 0:02:40]}  Nc5 {[%clk 0:02:41]} 15. Nf5 {[%clk 0:02:17]}  b5 {[%clk 0:02:39]} 16. Nd2 {[%clk 0:02:15]}  Ne6 {[%clk 0:02:38]} 17. Nf3 {[%clk 0:02:14]}  Nd7 {[%clk 0:02:38]} 18. Rd1 {[%clk 0:02:02]}  f6 {[%clk 0:02:37]} 19. Qe2 {[%clk 0:01:32]}  Rad8 {[%clk 0:02:28]} 20. Rd2 {[%clk 0:01:20]}  Bb4 {[%clk 0:02:14]} 21. Rd3 {[%clk 0:01:15]}  Bf8 {[%clk 0:02:03]} 22. Rfd1 {[%clk 0:01:15]}  Ndc5 {[%clk 0:02:04]} 23. Rxd8 {[%clk 0:01:14]}  Rxd8 {[%clk 0:02:05]} 24. Rxd8 {[%clk 0:01:09]}  Qxd8 {[%clk 0:02:05]} 25. g4 {[%clk 0:00:21]}  Nf4 {[%clk 0:01:57]} 26. Qd2 {[%clk 0:00:21]}  Qxd2 {[%clk 0:01:51]} 27. Nxd2 {[%clk 0:00:22]}  Bf7 {[%clk 0:01:51]} 28. Bf1 {[%clk 0:00:23]}  a6 {[%clk 0:01:46]} 29. Ne3 {[%clk 0:00:23]}  h5 {[%clk 0:01:42]} 30. c4 {[%clk 0:00:22]}  hxg4 {[%clk 0:01:41]} 31. hxg4 {[%clk 0:00:22]}  Ncd3 {[%clk 0:01:40]} 32. Bxd3 {[%clk 0:00:19]}  Nxd3 {[%clk 0:01:41]} 33. Bc3 {[%clk 0:00:20]}  Bc5 {[%clk 0:01:41]} 34. Kf1 {[%clk 0:00:20]}  Bxe3 {[%clk 0:00:28]} 35. fxe3 {[%clk 0:00:20]}  Be6 {[%clk 0:00:28]} 36. g5 {[%clk 0:00:20]}  b4 {[%clk 0:00:29]} 37. Ba1 {[%clk 0:00:20]}  Bg4 {[%clk 0:00:29]} 38. gxf6 {[%clk 0:00:19]}  gxf6 {[%clk 0:00:30]} 39. c5 {[%clk 0:00:06]}  a5 {[%clk 0:00:30]} 40. Nc4 {[%clk 0:00:07]}  Nxc5 {[%clk 0:00:25]} 41. Nxa5 {[%clk 0:00:07]}  Nxe4 {[%clk 0:00:25]} 42. Nxc6 {[%clk 0:00:07]}  Nd2+ {[%clk 0:00:18]} 43. Ke1 {[%clk 0:00:08]}  Nf3+ {[%clk 0:00:15]} 44. Kf2 {[%clk 0:00:08]}  Ng5 {[%clk 0:00:13]} 45. Nxb4 {[%clk 0:00:09]}  Bf5 {[%clk 0:00:13]} 46. Nd5 {[%clk 0:00:07]}  Kf7 {[%clk 0:00:13]} 47. Nc3 {[%clk 0:00:07]}  Ne4+ {[%clk 0:00:12]} 48. Nxe4 {[%clk 0:00:07]}  Bxe4 {[%clk 0:00:13]} 49. Ke2 {[%clk 0:00:08]}  Ke6 {[%clk 0:00:13]} 50. Kd2 {[%clk 0:00:08]}  f5 {[%clk 0:00:13]} 51. Kc3 {[%clk 0:00:06]}  f4 {[%clk 0:00:14]} 52. exf4 {[%clk 0:00:07]}  exf4 {[%clk 0:00:14]} 53. Kd4 {[%clk 0:00:06]}  Bb1 {[%clk 0:00:14]} 54. a3 {[%clk 0:00:07]}  Ba2 {[%clk 0:00:14]} 55. b4 {[%clk 0:00:07]}  Bb3 {[%clk 0:00:13]} 56. Bc3 {[%clk 0:00:07]}  Ba4 {[%clk 0:00:13]} 57. Kc5 {[%clk 0:00:08]}  f3 {[%clk 0:00:12]} 58. Bd4 {[%clk 0:00:08]}  Kd7 {[%clk 0:00:12]} 59. b5 {[%clk 0:00:09]}  Kc7 {[%clk 0:00:12]} 60. Kb4 {[%clk 0:00:09]}  Bd1 {[%clk 0:00:11]} 61. a4 {[%clk 0:00:09]}  Kb7 {[%clk 0:00:09]} 62. Bf2 {[%clk 0:00:10]}  Be2 {[%clk 0:00:10]} 63. Bg1 {[%clk 0:00:09]}  Ka8 {[%clk 0:00:09]} 64. Be3 {[%clk 0:00:10]}  Kb7 {[%clk 0:00:10]} 65. Kc5 {[%clk 0:00:10]}  Bd3 {[%clk 0:00:10]} 66. Bf2 {[%clk 0:00:10]}  Be2 {[%clk 0:00:11]} 67. Bg1 {[%clk 0:00:11]}  Bd3 {[%clk 0:00:11]} 68. Kd4 {[%clk 0:00:11]}  Be2 {[%clk 0:00:11]} 69. Bf2 {[%clk 0:00:11]}  Bf1 {[%clk 0:00:11]} 70. Kc3 {[%clk 0:00:11]}  Be2 {[%clk 0:00:11]} 71. Kb4 {[%clk 0:00:10]}  Bf1 {[%clk 0:00:11]} 72. Kc5 {[%clk 0:00:10]}  Be2 {[%clk 0:00:12]} 73. Be3 {[%clk 0:00:10]}  Bf1 {[%clk 0:00:12]} 74. a5 {[%clk 0:00:10]}  Bxb5 {[%clk 0:00:12]} 75. Kxb5 {[%clk 0:00:11]}  f2 {[%clk 0:00:12]} 76. Bxf2 {[%clk 0:00:12]}  Ka8 {[%clk 0:00:13]} 77. a6 {[%clk 0:00:12]}  Kb8 {[%clk 0:00:13]} 78. a7+ {[%clk 0:00:12]}  Ka8 {[%clk 0:00:14]} 79. Ka6 {[%clk 0:00:13]} 1/2-1/2


[Site "https://www.chess.com"]

[Event "Titled Tuesday Blitz June 07 Late 2022"]
[White "Uskov, Artem"]
[Black "Hansen, Eric"]
[WhiteFideId "34254854"]
[BlackFideId "2606771"]
[WhiteElo "2335"]
[BlackElo "2568"]
[Result "1/2-1/2"]
[Round "03"]
[TimeControl "180+1"]
[Date "2022.06.07"]
[WhiteClock "0:00:38"]
[BlackClock "0:00:03"]

1. e4 {[%clk 0:03:00]}  c5 {[%clk 0:02:54]} 2. Nf3 {[%clk 0:03:00]}  e6 {[%clk 0:02:55]} 3. c3 {[%clk 0:02:59]}  Nf6 {[%clk 0:02:54]} 4. e5 {[%clk 0:02:59]}  Nd5 {[%clk 0:02:54]} 5. d4 {[%clk 0:03:00]}  cxd4 {[%clk 0:02:54]} 6. cxd4 {[%clk 0:03:00]}  b6 {[%clk 0:02:55]} 7. Nc3 {[%clk 0:03:00]}  Nxc3 {[%clk 0:02:55]} 8. bxc3 {[%clk 0:03:01]}  Bb7 {[%clk 0:02:56]} 9. Bd3 {[%clk 0:03:01]}  Qc7 {[%clk 0:02:57]} 10. Bd2 {[%clk 0:02:59]}  d6 {[%clk 0:02:57]} 11. O-O {[%clk 0:02:52]}  Nd7 {[%clk 0:02:57]} 12. Re1 {[%clk 0:02:52]}  Be7 {[%clk 0:02:46]} 13. Qe2 {[%clk 0:02:34]}  O-O {[%clk 0:02:45]} 14. Bf4 {[%clk 0:02:25]}  Bxf3 {[%clk 0:02:39]} 15. Qxf3 {[%clk 0:02:09]}  dxe5 {[%clk 0:02:40]} 16. Bxe5 {[%clk 0:02:10]}  Nxe5 {[%clk 0:02:40]} 17. Rxe5 {[%clk 0:02:10]}  g6 {[%clk 0:02:40]} 18. Rc1 {[%clk 0:02:05]}  Bd6 {[%clk 0:02:37]} 19. Re4 {[%clk 0:01:58]}  Bxh2+ {[%clk 0:02:37]} 20. Kf1 {[%clk 0:01:58]}  Bd6 {[%clk 0:02:37]} 21. Rh4 {[%clk 0:01:58]}  Rae8 {[%clk 0:02:32]} 22. g4 {[%clk 0:01:55]}  Be7 {[%clk 0:02:26]} 23. Rh1 {[%clk 0:01:54]}  Bg5 {[%clk 0:02:26]} 24. Rc2 {[%clk 0:01:54]}  h6 {[%clk 0:02:26]} 25. Kg2 {[%clk 0:01:51]}  Kg7 {[%clk 0:02:25]} 26. Re1 {[%clk 0:01:50]}  e5 {[%clk 0:02:25]} 27. Rce2 {[%clk 0:01:49]}  Qxc3 {[%clk 0:02:21]} 28. dxe5 {[%clk 0:01:48]}  Rd8 {[%clk 0:02:18]} 29. Be4 {[%clk 0:01:47]}  Qxf3+ {[%clk 0:01:58]} 30. Bxf3 {[%clk 0:01:48]}  Rd4 {[%clk 0:01:56]} 31. e6 {[%clk 0:01:48]}  fxe6 {[%clk 0:01:52]} 32. Rxe6 {[%clk 0:01:49]}  Rdf4 {[%clk 0:01:52]} 33. R1e3 {[%clk 0:01:48]}  R4f6 {[%clk 0:01:46]} 34. Rxf6 {[%clk 0:01:46]}  Bxf6 {[%clk 0:01:43]} 35. Rd3 {[%clk 0:01:46]}  Rf7 {[%clk 0:01:38]} 36. Be4 {[%clk 0:01:43]}  Re7 {[%clk 0:01:37]} 37. f3 {[%clk 0:01:43]}  Rc7 {[%clk 0:01:37]} 38. Kg3 {[%clk 0:01:42]}  g5 {[%clk 0:01:31]} 39. f4 {[%clk 0:01:40]}  b5 {[%clk 0:01:29]} 40. fxg5 {[%clk 0:01:30]}  hxg5 {[%clk 0:01:28]} 41. Kf3 {[%clk 0:01:28]}  b4 {[%clk 0:01:22]} 42. Rd5 {[%clk 0:01:27]}  Rc3+ {[%clk 0:01:19]} 43. Bd3 {[%clk 0:01:22]}  Ra3 {[%clk 0:01:19]} 44. Rd7+ {[%clk 0:01:17]}  Kf8 {[%clk 0:01:17]} 45. Ke4 {[%clk 0:01:17]}  Rxa2 {[%clk 0:00:50]} 46. Bc4 {[%clk 0:01:15]}  Rf2 {[%clk 0:00:50]} 47. Rxa7 {[%clk 0:01:12]}  Rf4+ {[%clk 0:00:50]} 48. Kd5 {[%clk 0:01:12]}  Be7 {[%clk 0:00:44]} 49. Bd3 {[%clk 0:01:00]}  Rxg4 {[%clk 0:00:34]} 50. Ke6 {[%clk 0:00:59]}  Rg3 {[%clk 0:00:32]} 51. Bc4 {[%clk 0:00:48]}  Re3+ {[%clk 0:00:30]} 52. Kf5 {[%clk 0:00:48]}  Rc3 {[%clk 0:00:15]} 53. Be6 {[%clk 0:00:45]}  Rf3+ {[%clk 0:00:14]} 54. Ke5 {[%clk 0:00:44]}  Re3+ {[%clk 0:00:09]} 55. Kf5 {[%clk 0:00:44]}  Rf3+ {[%clk 0:00:06]} 56. Ke5 {[%clk 0:00:44]}  Rf2 {[%clk 0:00:07]} 57. Ra8+ {[%clk 0:00:36]}  Kg7 {[%clk 0:00:07]} 58. Ra7 {[%clk 0:00:37]}  Re2+ {[%clk 0:00:07]} 59. Kf5 {[%clk 0:00:37]}  Kf8 {[%clk 0:00:06]} 60. Ra8+ {[%clk 0:00:37]}  Kg7 {[%clk 0:00:06]} 61. Ra7 {[%clk 0:00:37]}  Rf2+ {[%clk 0:00:07]} 62. Ke5 {[%clk 0:00:38]}  Re2+ {[%clk 0:00:03]} 63. Kf5 {[%clk 0:00:38]} 1/2-1/2


[Site "https://www.chess.com"]